Cogmind - Beta 13 @@@ ROGUE MODE // 2024.03.16 @ 09:47:49 Player: Yorkinshire Result: Destroyed by G-47 Trooper with Particle Gun Performance ------------- Evolutions (3) 1500 Regions Visited (5) 1000 Robots Destroyed (68) 340 Value Destroyed (2014) 2014 Prototype IDs (3) 60 Alien Tech Used (0) 0 Bonus (0) 0 TOTAL SCORE: 4914 Bonus ------- None Cogmind --------- Core Integrity 0/700 Matter 192/300 Energy 100/100 System Corruption 0% Temperature Cool (9) Movement Core (50) Location -7/Factory Parts ------- > --- POWER (1) -------- (None) > --- PROPULSION (3) --- (None) > --- UTILITY (7) ------ (None) > --- WEAPON (2) ------- (None) > --- INVENTORY (5) ---- Improved Carbon-fiber Leg Medium Matter Pod (100) Trap Scanner Advanced Assault Cannon Power Maul Peak State ------------ > --- POWER ------------ Improved Deuterium Engine > --- PROPULSION ------- Titanium Leg Titanium Leg Improved Carbon-fiber Leg > --- UTILITY ---------- Improved Heat Sink Large Storage Unit Advanced Visual Processing Unit Targeting Computer Target Analyzer Improved Light Armor Plating Insulated Plating > --- WEAPON ----------- Gauss Rifle Gauss Rifle > --- INVENTORY -------- Improved Deuterium Engine Huge Storage Unit Medium Matter Pod Trap Scanner Improved Sensor Array Weapon Cycler Transmission Jammer Medium Insulated Plating High-powered Tractor Beam Field Laser Minigun Advanced Assault Cannon Rocket Launcher Rocket Launcher Power Maul [Rating: 43] Favorites ----------- Power Ion Engine Engine Ion Engine Power Core Light Nuclear Core Propulsion Aluminum Leg Leg Aluminum Leg Utility Target Analyzer Device Improved Heat Sink Storage Medium Storage Unit Processor Target Analyzer Hackware Hacking Suite Protection Core Shielding Weapon Improved Assault Rifle Energy Gun Field Laser Ballistic Gun Improved Assault Rifle Ballistic Cannon Improved Light Cannon Launcher Rocket Launcher Build | -11 -10 -10 -9 -8 -7 ------- Run | Yrd Mat Min Mat Mat Fac Slots Evolved 6 | . . . 2 2 2 Power . | . . . . . . Propulsion 1 | . . . 1 . . Utility 5 | . . . 1 2 2 Weapon . | . . . . . . Parts Attached 81 | 6 12 5 23 17 18 Power 11 | 1 2 2 4 1 1 Engine 10 | 1 2 2 3 1 1 Core 1 | . . . 1 . . Reactor . | . . . . . . Propulsion 19 | 2 1 1 7 5 3 Treads . | . . . . . . Leg 19 | 2 1 1 7 5 3 Wheel . | . . . . . . Hover . | . . . . . . Flight . | . . . . . . Utility 21 | 1 3 . 5 5 7 Device 4 | . 2 . 1 1 . Storage 3 | 1 . . 1 . 1 Processor 7 | . . . 3 1 3 Hackware 1 | . . . . 1 . Protection 6 | . 1 . . 2 3 Artifact . | . . . . . . Weapon 30 | 2 6 2 7 6 7 Energy Gun 5 | 1 1 . . 1 2 Energy Cannon . | . . . . . . Ballistic Gun 17 | 1 4 1 5 3 3 Ballistic Cannon 1 | . . . 1 . . Launcher 7 | . 1 1 1 2 2 Special Weapon . | . . . . . . Impact Weapon . | . . . . . . Slashing Weapon . | . . . . . . Piercing Weapon . | . . . . . . Special Melee Weapon . | . . . . . . Unidentified Prototypes 2 | . . . 2 . . Parts Lost 13 | . . . . 8 5 Power . | . . . . . . Propulsion 5 | . . . . 3 2 Utility 5 | . . . . 3 2 Weapon 3 | . . . . 2 1 Highest Loss Streak 4 | . . . . 4 3 To Critical Strikes . | . . . . . . Average Slot Usage (%) 93 | . 89 85 94 98 97 Engine 10 | . 14 14 8 9 6 Leg 26 | . 28 28 31 25 21 Device 4 | . 4 . 5 6 6 Storage 7 | . 9 . 9 9 6 Processor 12 | . . . 14 20 22 Protection 8 | . 4 14 1 7 14 Energy Gun 3 | . 10 . . 5 3 Ballistic Gun 16 | . 17 27 16 10 10 Ballistic Cannon 1 | . . . 5 2 . Naked Turns 15 | . . . . . 15 Heaviest Build 48 | 13 29 29 31 30 48 Greatest Support 52 | 20 20 20 30 47 52 Greatest Overweight (x) 2 | 1 1 1 1 2 1 Average Overweight (x) . | . . 1 . . . Largest Inventory Capacity 15 | 8 8 5 10 10 15 Average Capacity 9 | 7 7 5 9 10 13 Most Carried 15 | 2 8 5 10 10 15 Average Carried 8 | 1 5 4 7 9 12 Final Capacity 10 | 8 5 5 10 10 5 Final Carried 10 | 2 5 5 10 10 5 Class Distribution -------------------- 60% | Scavenger-Mutant 37% | Mutant Dominant Class ---------------- Mutant | -10/Materials Scavenger-Mutant | -10/Mines Mutant | -9/Materials Scavenger-Mutant | -8/Materials Scavenger-Mutant | -7/Factory Resources | -11 -10 -10 -9 -8 -7 ----------- Run | Yrd Mat Min Mat Mat Fac Matter Collected 1780 | 209 208 140 511 401 311 Remotely . | . . . . . . Salvage Created 2088 | . 210 81 434 722 641 Parts 145 | . 18 12 27 45 43 Haulers Intercepted 2 | . . . 1 1 . Recyclers Shooed 3 | . . . 1 2 . Parts Field Recycled . | . . . . . . Retrieved Matter . | . . . . . . Parts Self-Destructed . | . . . . . . Prevented . | . . . . . . Kills | -11 -10 -10 -9 -8 -7 ------- Run | Yrd Mat Min Mat Mat Fac Combat Hostiles Destroyed 53 | . 9 8 9 15 12 Guns 29 | . 7 5 3 7 7 Cannons 6 | . . . 4 2 . AOE 18 | . 2 3 2 6 5 Classes Destroyed 13 | . 4 . 4 3 2 Builder 2 | . . . . . 2 Hauler 2 | . . . 1 1 . Recycler 4 | . . . . 3 1 Operator 2 | . . . 1 . 1 Watcher 5 | . 1 . 2 1 1 Swarmer 20 | . 5 8 . 4 3 Grunt 15 | . 1 . 6 6 2 Brawler 1 | . . . 1 . . Duelist 1 | . . . . 1 . Sentry 8 | . . . 2 3 3 Hunter 4 | . . . . 1 3 Programmer 1 | . . . . . 1 Subdweller 3 | . 3 . . . . Best Kill Streak 8 | . 4 3 4 8 7 Combat Bots Only 8 | . 4 3 4 8 6 Max Kills in Single Turn 3 | . 2 2 2 3 3 Gunslinging 1 | . . . 1 . . Exploded 3 | . 2 2 1 3 3 Melee . | . . . . . . Uniques/NPCs Destroyed . | . . . . . . Combat | -11 -10 -10 -9 -8 -7 -------- Run | Yrd Mat Min Mat Mat Fac Hostile Shots Fired 440 | . 44 38 27 102 229 Missed 140 | . 10 15 9 30 76 Damage Taken 4325 | . 518 208 336 1092 2171 Core 990 | . 141 10 15 113 711 Absorbed by Shields . | . . . . . . Redirected to Shielding 31 | . . . . 12 19 Ignored by Resistances 12 | . . . . . 12 Regen/Repaired (Parts) 205 | . . . 205 . . Core Remaining (%) 78 | 100 . 39 96 79 . Volleys Fired 162 | . 34 13 24 50 41 Largest 2 | . 2 2 2 2 2 Hottest 91 | . 70 50 62 86 91 Shots Fired 306 | . 66 24 44 96 76 Gun 256 | . 65 22 22 77 70 Cannon 33 | . . . 18 15 . Launcher 17 | . 1 2 4 4 6 Special . | . . . . . . Kinetic 217 | . 36 22 40 74 45 Thermal 72 | . 29 . . 18 25 Explosive 17 | . 1 2 4 4 6 Electromagnetic . | . . . . . . Robot Hit Streak 10 | . 9 1 6 8 10 Robot Miss Streak 5 | . 5 2 3 4 2 Penetration Max 1 | . . . . . 1 Secondary Targets 4 | . . 1 1 1 1 Max Gunslinging Chain 1 | . . 1 1 1 1 Shots Hit Robots 187 | . 32 9 28 64 54 Core Hits 117 | . 17 8 22 36 34 Critical Kills 6 | . . . . 3 3 Critical Parts Destroyed 4 | . 1 . . 1 2 Critical Strikes 15 | . 2 . 2 4 7 Burn 2 | . 1 . . . 1 Destroy 11 | . 1 . . 4 6 Blast 2 | . . . 2 . . Melee Attacks . | . . . . . . Impact . | . . . . . . Slashing . | . . . . . . Piercing . | . . . . . . Sneak Attacks . | . . . . . . Combat Hostiles . | . . . . . . Follow-up Attacks . | . . . . . . Damage Inflicted 4415 | . 479 296 821 1464 1355 Guns 2427 | . 355 130 220 824 898 Cannons 481 | . . . 288 193 . Explosions 1488 | . 122 166 313 430 457 Melee . | . . . . . . Ramming 19 | . 2 . . 17 . Kinetic 2260 | . 156 130 508 826 640 Thermal 648 | . 199 . . 191 258 Explosive 1488 | . 122 166 313 430 457 Electromagnetic . | . . . . . . Impact . | . . . . . . Slashing . | . . . . . . Piercing . | . . . . . . Highest Corruption . | . . . . . . Average Corruption . | . . . . . . Corruption Purged . | . . . . . . Corruption Blocked . | . . . . . . Overload Shots . | . . . . . . Overflow Damage 51 | . . 33 . 10 8 Projectiles 10 | . . . . 10 . Explosions 41 | . . 33 . . 8 Melee . | . . . . . . Knockbacks 4 | . . . . 4 . Impact . | . . . . . . Kinetic 4 | . . . . 4 . Secondary . | . . . . . . Self-Inflicted Damage 144 | . . 32 30 17 65 Shots 6 | . . 1 1 1 3 Rammed . | . . . . . . Targets Rammed 2 | . 1 . . 1 . Kicked 2 | . 1 . . 1 . Crushed . | . . . . . . Highest Temperature 252 | . 252 . 36 129 84 Average Temperature 56 | . 93 . 12 42 25 Received Heat Transfer 1146 | . 66 . 141 342 597 Siege Activations . | . . . . . . Robots Corrupted . | . . . . . . Combat Hostiles . | . . . . . . Parts Fried . | . . . . . . Impact Corruptions . | . . . . . . Robots Melted . | . . . . . . Combat Hostiles . | . . . . . . Parts Melted 9 | . 3 . . 3 3 Heat Transferred 1702 | . 666 . . 407 629 Parts Sabotaged . | . . . . . . Parts Stolen . | . . . . . . Parts Stripped . | . . . . . . Power Chain Reactions . | . . . . . . Alert | -11 -10 -10 -9 -8 -7 ------- Run | Yrd Mat Min Mat Mat Fac Peak Influence 395 | . 185 177 243 355 395 Initial 115 | . . 5 19 39 115 Average 156 | . 58 98 119 217 262 Maximum Alert Level 1 | . . . 1 1 1 Low Security (%) 71 | 100 100 100 85 40 38 Level 1 28 | . . . 14 59 61 Level 2 . | . . . . . . Level 3 . | . . . . . . Level 4 . | . . . . . . Level 5 . | . . . . . . High Security . | . . . . . . Max Security . | . . . . . . Squads Dispatched 12 | . 1 1 1 1 8 Investigation 2 | . . 1 . . 1 Extermination 1 | . . . . . 1 Reinforcement 6 | . 1 . 1 1 3 Assault . | . . . . . . Garrison 3 | . . . . . 3 Intercept . | . . . . . . Searches Triggered . | . . . . . . Construction Impeded 1 | . . . . . 1 Haulers Reinforced . | . . . . . . Active Scanning Responses . | . . . . . . Cargo Convoy Interrupts . | . . . . . . Stealth | -11 -10 -10 -9 -8 -7 --------- Run | Yrd Mat Min Mat Mat Fac Distress Signals 2 | . . . 1 1 . Communications Jammed . | . . . . . . Distress Signals . | . . . . . . Times Spotted 100 | . 21 9 23 21 26 Peak Tracking Total 6 | . 4 3 6 4 6 Tactical Retreats 7 | . 3 . 1 1 2 Traps | -11 -10 -10 -9 -8 -7 ------- Run | Yrd Mat Min Mat Mat Fac Traps Triggered 4 | . 2 . . . 2 Indirectly . | . . . . . . Trap Hack Attempts . | . . . . . . Triggered . | . . . . . . Disarmed . | . . . . . . Reprogrammed . | . . . . . . Reused . | . . . . . . Traps Extracted . | . . . . . . Installed . | . . . . . . Triggered 1 | . . 1 . . . Machines | -11 -10 -10 -9 -8 -7 ---------- Run | Yrd Mat Min Mat Mat Fac Machines Disabled 9 | . 1 1 . . 7 Max in Single Turn 2 | . 1 1 . . 2 Machines Repaired . | . . . . . . Machines Dismantled . | . . . . . . Machines Sabotaged . | . . . . . . Overloaded Fab Kills . | . . . . . . Hacking | -11 -10 -10 -9 -8 -7 --------- Run | Yrd Mat Min Mat Mat Fac Machines Accessed 17 | . 3 1 3 4 6 Terminals 13 | . 3 . 2 3 5 Fabricators . | . . . . . . Repair Stations 1 | . . . 1 . . Recycling Units . | . . . . . . Scanalyzers 1 | . . . . 1 . Garrison Access 1 | . . . . . 1 Total Hacks 39 | . 4 1 11 11 12 Successful 26 | . 1 1 9 8 7 Failed 13 | . 3 . 2 3 5 Catastrophic 5 | . 2 . 1 . 2 Database Lockouts . | . . . . . . Manual 4 | . 2 . 1 . 1 Terminals 27 | . 4 . 5 7 11 Fabricators . | . . . . . . Repair Stations 6 | . . . 6 . . Recycling Units . | . . . . . . Scanalyzers 4 | . . . . 4 . Garrison Access 1 | . . . . . 1 Terminal Hacks 16 | . 1 1 3 4 7 Record 4 | . . . . . 4 Robot Analysis 2 | . 1 . 1 . . Prototype ID Bank 1 | . . . . 1 . Open Door 1 | . . 1 . . . Open DSF 1 | . . . . . 1 Emergency Access Points 1 | . . . . 1 . Alert Level 3 | . . . 1 1 1 Locate Traps 3 | . . . 1 1 1 Fabricator Hacks . | . . . . . . Repair Station Hacks 6 | . . . 6 . . Scan Component 3 | . . . 3 . . Repair 3 | . . . 3 . . Recycling Unit Hacks . | . . . . . . Scanalyzer 4 | . . . . 4 . Insert Component 2 | . . . . 2 . Analyze 2 | . . . . 2 . Garrison Access Hacks . | . . . . . . Unauthorized Hacks . | . . . . . . Terminals . | . . . . . . Fabricators . | . . . . . . Repair Stations . | . . . . . . Recycling Units . | . . . . . . Scanalyzers . | . . . . . . Garrison Access . | . . . . . . Data Cores Recovered 1 | . . . 1 . . Used . | . . . . . . Hacking Detections 14 | . 3 . 2 4 5 Full Trace Events 1 | . . . . . 1 Feedback Events . | . . . . . . Feedback Blocked . | . . . . . . Robot Schematics Acquired . | . . . . . . Robots Built . | . . . . . . Authchips . | . . . . . . Time . | . . . . . . Total Robot Build Rating . | . . . . . . Part Schematics Acquired 2 | . . . . 2 . Parts Built . | . . . . . . Authchips . | . . . . . . Time . | . . . . . . Total Part Build Rating . | . . . . . . Parts Repaired 3 | . . . 3 . . Time 113 | . . . 113 . . Parts Recycled . | . . . . . . Recycled Matter . | . . . . . . Retrieved Matter . | . . . . . . Retrieved Components . | . . . . . . Parts Scanalyzed 2 | . . . . 2 . Part Schematics Acquired 2 | . . . . 2 . Parts Damaged . | . . . . . . Bothacking | -11 -10 -10 -9 -8 -7 ------------ Run | Yrd Mat Min Mat Mat Fac Used RIF Installer . | . . . . . . Robots Hacked . | . . . . . . Non-combat . | . . . . . . Combat . | . . . . . . Robot Hacks Applied . | . . . . . . Relay Couplers Released . | . . . . . . Fabnet Peak Effective % . | . . . . . . Robots Rewired . | . . . . . . Allies Hacked . | . . . . . . Hacks Repelled . | . . . . . . Allies | -11 -10 -10 -9 -8 -7 -------- Run | Yrd Mat Min Mat Mat Fac Total Allies . | . . . . . . Largest Group . | . . . . . . Highest-Rated Group . | . . . . . . Highest-Rated Ally . | . . . . . . Total Orders . | . . . . . . Ally Attacks . | . . . . . . Total Damage . | . . . . . . Kills . | . . . . . . Allies Corrupted . | . . . . . . Allies Melted . | . . . . . . Intel | -11 -10 -10 -9 -8 -7 ------- Run | Yrd Mat Min Mat Mat Fac Robot Analysis Total 2 | . 1 . 1 . . Derelict Logs Recovered 2 | . . 2 . . . Drone Launches . | . . . . . . Drone Recoveries . | . . . . . . Exploration | -11 -10 -10 -9 -8 -7 ------------- Run | Yrd Mat Min Mat Mat Fac Turns Passed 4380 | 56 852 759 827 756 1130 Spaces Moved 2419 | 37 487 362 440 415 678 Core 2 | 2 . . . . . Treads . | . . . . . . Legs 2417 | 35 487 362 440 415 678 Wheels . | . . . . . . Hover . | . . . . . . Flight . | . . . . . . Fastest Speed 50 | 50 120 190 120 120 123 Average Speed 139 | 123 136 190 133 123 130 Slowest Speed 260 | 190 190 190 190 260 200 Overloaded Moves . | . . . . . . Propulsion Burnouts . | . . . . . . Robots Hopped . | . . . . . . Cave-ins Triggered . | . . . . . . Exploration Rate (%) 38 | 4 53 63 48 42 20 Regions Visited 5 Branch Regions 1 Pre-discovered Areas 1 | . . 1 . . . Known Exits Taken . | . . . . . . Unknown Exits Taken 5 | 1 1 1 1 1 . Scrap Searched 1 | . . 1 . . . Spaces Dug . | . . . . . . Terrain Destroyed 156 | . 7 18 34 47 50 Melee . | . . . . . . Projectile 6 | . . 3 . . 3 AOE 150 | . 7 15 34 47 47 Terrain Rammed . | . . . . . . Walls Destroyed . | . . . . . . Machines Disabled . | . . . . . . Actions | -11 -10 -10 -9 -8 -7 --------- Run | Yrd Mat Min Mat Mat Fac Total 3118 | 44 620 411 633 563 847 Wait 348 | . 56 23 129 58 82 Move 2414 | 36 486 361 439 414 678 Hop . | . . . . . . Pick Up 56 | 2 14 3 7 13 17 Fast Attach 24 | 6 2 1 7 5 3 Attach 14 | . 1 . 3 6 4 Detach 2 | . . . 2 . . Swap 43 | . 9 4 13 6 11 Drop 52 | . 16 6 9 10 11 Fire 162 | . 34 13 24 50 41 Melee . | . . . . . . Ram . | . . . . . . Kick 2 | . 1 . . 1 . Crush . | . . . . . . Escape Stasis . | . . . . . . Rewire . | . . . . . . Trap . | . . . . . . Miscellaneous 1 | . 1 . . . . Route ------- -11/Scrapyard -10/Materials (discovered 2 exits: *Mat / *Min) -10/Mines (discovered 4 exits: *Mat x2 / [*Exi] / [*Sub]) -9/Materials (discovered 2 exits: *Mat / *Min) -8/Materials (discovered 2 exits: *Fac x2) -7/Factory (discovered 1 exit: [*Low]) History --------- Turn | Location | Event 25 | -11/Scrapyard | Discovered new exit (range 15) 57 | -11/Scrapyard | Entered Materials 305 | -10/Materials | Build established: Mutant 500 | -10/Materials | Derelicts attacked the area 525 | -10/Materials | Discovered new exit (range 6) 642 | -10/Materials | Core integrity fell below 50% 777 | -10/Materials | Discovered new exit (range 16) 909 | -10/Materials | Entered Mines 954 | -10/Mines | Met a Derelict bent on vengeance 1167 | -10/Mines | Met a Derelict shopkeep closing up shop 1320 | -10/Mines | Build established: Scavenger-Mutant 1414 | -10/Mines | Discovered new exit (range 9) 1420 | -10/Mines | Learned location of Storage (-9) 1480 | -10/Mines | Discovered new exit (range 10) 1495 | -10/Mines | Deemed a non-threat by the Exiles lab entrance 1495 | -10/Mines | Discovered new exit (range 5) 1581 | -10/Mines | Discovered new exit (range 9) 1588 | -10/Mines | Received a Rocket Launcher from a helpful Derelict 1668 | -10/Mines | Entered Materials 1668 | -9/Materials | Evolved 2 slots: Propulsion x1, Utility x1 1669 | -9/Materials | Identified exit to Mines 1919 | -9/Materials | Repaired Broken Aluminum Leg 1971 | -9/Materials | Repaired Imp. Assault Rifle 2011 | -9/Materials | Repaired Aluminum Leg 2412 | -9/Materials | Build established: Mutant 2448 | -9/Materials | Discovered new exit (range 17) 2495 | -9/Materials | Entered another Materials area 2495 | -8/Materials | Evolved 2 slots: Utility x2 2632 | -8/Materials | Destroyed 8 combat bots 2733 | -8/Materials | Lost 4 parts (1n2u1w) 2885 | -8/Materials | Build established: Scavenger-Mutant 3039 | -8/Materials | Discovered new exit (range 17) 3223 | -8/Materials | Discovered new exit (range 18) 3251 | -8/Materials | Entered Factory 3251 | -7/Factory | Evolved 2 slots: Utility x2 3403 | -7/Factory | Identified exit to DSF 3792 | -7/Factory | Lost 3 parts (2n1w) 4010 | -7/Factory | Discovered new exit (range 20) 4362 | -7/Factory | Build established: Mutant 4366 | -7/Factory | Released all parts (10) 4373 | -7/Factory | Core integrity fell below 50% 4379 | -7/Factory | Core integrity fell below 20% 4381 | -7/Factory | Destroyed by G-47 Trooper with Particle Gun Last Messages --------------- 04339_ Critical hit (Burn: +37). 04351_ Slug penetrates L-41 Fighter. 04354_ Field Laser severed. 04356_ Targeting Computer destroyed. 04366_ Released Insulated Plating. 04366_ Released Imp. Carbon-fiber Leg. 04366_ Released Adv. Visual Processing Unit. 04366_ Released Target Analyzer. 04366_ Released Titanium Leg. 04366_ Released Lrg. Storage Unit. 04366_ Released Titanium Leg. 04366_ Released Gauss Rifle. 04366_ Gauss Rifle crushed and broken. 04366_ Released Imp. Deuterium Engine. 04366_ Imp. Deuterium Engine crushed and broken. 04366_ Released Imp. Light Armor Plating. 04366_ Imp. Light Armor Plating crushed and broken. 04377_ Critical hit (Burn: +37). 04381_ L-41 Fighter destroyed. Map ----- +----------------------------------------------------+ | ???????# #????????????????? | | ???????#### #????????????????? | | ??????????# ###????????????????? | | ??????????# "" #??????????????????? | | ??????????# "" #??????????????????? | | ??????????# """ #??????????????????? | | ?????????## """ #??????????????????? | | ?????????#" """ #??????????????????? | | ?????????#" #??????????????????? | | ?????????#"! "" #??????????????????? | | ?????????#T%* "" #??????????????????? | | ?????????#"%/ """ #??????????????????? | | ?????????#"=! """ #??????????????????? | | ?????????#" """ #??????????????????? | | ???#+###### #??????????????????? | | ???# #??????????????????? | | ???# #??????????????????? | | ???# #??????????????????? | | ???# ############### #??????????????????? | | ???????????????????# #??????????????????? | | ???????????????????# #??????????????????? | | ???????????????#####+#####??????????????? | | ???????????????#[!g!% #??????????????? | | ???????????????#![g""T"" #??????????????? | | ???????????????#==g""""" #??????????????? | | ???????????????#@bg!!= #??????????????? | | ???????????????###########??????????????? | | ????????????????????????????????????????? | | ????????????????????????????????????????? | | ????????????????????????????????????????? | | ????????????????????????????????????????? | | ????????????????????????????????????????? | | ????????????????????????????????????????? | | ????????????????????????????????????????? | | ????????????????????????????????????????? | | ????????????????????????????????????????? | | ????????????????????????????????????????? | | ????????????????????????????????????????? | | ????????????????????????????????????????? | | ????????????????????????????????????????? | | ????????????????????????????????????????? | | ?????????????????H??????????????????????? | | ????????????????????????????????????????? | | ????????????????????????????????????????? | | ????????????????????????????????????????? | | ????????????????????????????????????????? | | ????????????????????????????????????????? | | ????????????????????????????????????????? | | ????????????????????????????????????????? | | ????????????????????????????????????????? | +----------------------------------------------------+ Best States ------------- Heat Dissipation 48 Energy Generation 16 Energy Capacity 290 Matter Stores 300 Matter Capacity 300 Sight Range 21 Robot Scan Range 14 Terrain Scan Density 85 Armor Coverage 800 Resistance: EM 15 Core Shielding 20 Evasion (%) 55 Targeting Accuracy 5 Target Analysis 5 Offensive Hacking 10 Item Schematics ----------------- Rocket Launcher | -8/Materials | Scanalyzed Lgt. Nuclear Core | -8/Materials | Scanalyzed Robot Schematics ------------------ None Fabricated ------------ Nothing Alien Tech Used ----------------- None Achievements -------------- None Challenges ------------ None Game ------ Seed BehemothGuidedFlail Manual? 0 Play Time 01:30:21 Cumulative 14.5 hours Start 2024.03.14 @ 13:34:56 End 2024.03.16 @ 09:47:49 Sessions 7 Manual Loads 0 Difficulty Rogue Special Mode None Game No. 18 Rogue 18 Adventurer 0 Explorer 0 Win Type - Total 0 Types 0/0/0/0/0/0/0/0/0 Lore% 4 Gallery% 12 Achievement% 11 Wizard Run 0 Options --------- Layout 1 ASCII 0 Keyboard 0 Movement Mouse Keybinds 0 Fullscreen 2 Font 24/Smallcaps Map View 50x35 Zoom Use 0% Tactical HUD 1 Map Filters NONE Filters NONE Steam 1 RUN: 6d311c41-2da2-42b6-ab36-150668f3fff6